[Event "*** Titled Tuesday Blitz"]
[Site "Chess.com"]
[Date "2020.04.07"]
[Round "4"]
[White "ajian"]
[Black "TheKingDoctor"]
[Result "1-0"]
[WhiteElo "2396"]
[BlackElo "2104"]
[TimeControl "180+1"]
[EndTime "13:40:54 PDT"]
[Termination "ajian won by checkmate"]

1. d4 {[%clk 0:03:00.9]} 1... d5 {[%clk 0:02:59.2]} 2. c4 {[%clk 0:03:01.1]}
2... c6 {[%clk 0:02:57.1]} 3. Nf3 {[%clk 0:03:00.9]} 3... Nf6 {[%clk 0:02:55.3]}
4. e3 {[%clk 0:03:00.7]} 4... Bf5 {[%clk 0:02:53.5]} 5. Nc3 {[%clk 0:03:00.8]}
5... e6 {[%clk 0:02:51.5]} 6. Nh4 {[%clk 0:02:58.3]} 6... Be4 {[%clk 0:02:50.8]}
7. f3 {[%clk 0:02:58.1]} 7... Bg6 {[%clk 0:02:51.1]} 8. Qb3 {[%clk 0:02:57.5]}
8... Qc7 {[%clk 0:02:46.4]} 9. Bd2 {[%clk 0:02:53.8]} 9... Be7 {[%clk
0:02:43.4]} 10. Nxg6 {[%clk 0:02:45.9]} 10... hxg6 {[%clk 0:02:44.1]} 11. Bd3
{[%clk 0:02:42.2]} 11... Nbd7 {[%clk 0:02:35.4]} 12. g3 {[%clk 0:02:38]} 12...
O-O-O {[%clk 0:02:02.6]} 13. O-O-O {[%clk 0:02:27.8]} 13... Kb8 {[%clk
0:01:49.8]} 14. Kb1 {[%clk 0:02:18.4]} 14... Nb6 {[%clk 0:01:31.5]} 15. cxd5
{[%clk 0:02:08.3]} 15... exd5 {[%clk 0:01:22.9]} 16. Na4 {[%clk 0:02:01]} 16...
Nc4 {[%clk 0:00:48.5]} 17. Bxc4 {[%clk 0:01:51.7]} 17... dxc4 {[%clk 0:00:49]}
18. Qxc4 {[%clk 0:01:52.6]} 18... b5 {[%clk 0:00:46.6]} 19. Qb3 {[%clk 0:01:51]}
19... Ka8 {[%clk 0:00:38.3]} 20. Nc5 {[%clk 0:01:43.3]} 20... Bxc5 {[%clk
0:00:37.7]} 21. dxc5 {[%clk 0:01:44.2]} 21... Rd5 {[%clk 0:00:35.9]} 22. Bb4
{[%clk 0:01:31.7]} 22... Qd7 {[%clk 0:00:30.2]} 23. e4 {[%clk 0:01:24.4]} 23...
Rd4 {[%clk 0:00:19.2]} 24. Rxd4 {[%clk 0:01:18.7]} 24... Qxd4 {[%clk 0:00:19.5]}
25. Rd1 {[%clk 0:01:19.6]} 25... Qf2 {[%clk 0:00:17]} 26. Qxf7 {[%clk
0:01:11.1]} 26... Qxf3 {[%clk 0:00:16.8]} 27. Re1 {[%clk 0:00:55.3]} 27... Qd3+
{[%clk 0:00:17]} 28. Ka1 {[%clk 0:00:54.5]} 28... Rd8 {[%clk 0:00:14.5]} 29. a3
{[%clk 0:00:45.2]} 29... Rd7 {[%clk 0:00:11.3]} 30. Qf8+ {[%clk 0:00:41.1]}
30... Kb7 {[%clk 0:00:10.1]} 31. e5 {[%clk 0:00:40.6]} 31... Nd5 {[%clk
0:00:09.2]} 32. e6 {[%clk 0:00:25.9]} 32... Nxb4 {[%clk 0:00:08.4]} 33. exd7
{[%clk 0:00:25.8]} 33... Nc2+ {[%clk 0:00:08.4]} 34. Ka2 {[%clk 0:00:26.1]}
34... Nxe1 {[%clk 0:00:04.4]} 35. Qc8# {[%clk 0:00:21.2]} 1-0

[Event "*** Titled Tuesday Blitz"]
[Site "Chess.com"]
[Date "2020.04.07"]
[Round "4"]
[White "Indianlad"]
[Black "Keranke"]
[Result "1/2-1/2"]
[WhiteElo "3009"]
[BlackElo "2790"]
[TimeControl "180+1"]
[EndTime "13:40:55 PDT"]
[Termination "Game drawn by repetition"]

1. Nf3 {[%clk 0:03:00.9]} 1... g6 {[%clk 0:02:57.7]} 2. e4 {[%clk 0:03:00.7]}
2... Bg7 {[%clk 0:02:58.6]} 3. d4 {[%clk 0:03:00.9]} 3... d6 {[%clk 0:02:58.5]}
4. Bc4 {[%clk 0:03:01.4]} 4... Nf6 {[%clk 0:02:57.6]} 5. Qe2 {[%clk 0:03:01.7]}
5... O-O {[%clk 0:02:58]} 6. O-O {[%clk 0:02:57.4]} 6... c6 {[%clk 0:02:56.8]}
7. Bb3 {[%clk 0:02:55.4]} 7... Qc7 {[%clk 0:02:55]} 8. e5 {[%clk 0:02:49.7]}
8... dxe5 {[%clk 0:02:47.5]} 9. dxe5 {[%clk 0:02:50.6]} 9... Nd5 {[%clk
0:02:48.1]} 10. h3 {[%clk 0:02:44.6]} 10... Na6 {[%clk 0:02:37.6]} 11. Rd1
{[%clk 0:02:40.6]} 11... Nc5 {[%clk 0:02:35.5]} 12. Bxd5 {[%clk 0:02:40.4]}
12... cxd5 {[%clk 0:02:36.4]} 13. Rxd5 {[%clk 0:02:40.8]} 13... Be6 {[%clk
0:02:31.6]} 14. Rd1 {[%clk 0:02:41.4]} 14... Rfd8 {[%clk 0:02:25.5]} 15. Rxd8+
{[%clk 0:02:40.9]} 15... Rxd8 {[%clk 0:02:25.2]} 16. Nc3 {[%clk 0:02:41.8]}
16... a6 {[%clk 0:02:18.5]} 17. Bf4 {[%clk 0:02:35.3]} 17... b5 {[%clk
0:02:17.1]} 18. a3 {[%clk 0:02:35.8]} 18... Bc4 {[%clk 0:02:14.9]} 19. Qe3
{[%clk 0:02:35.1]} 19... Ne6 {[%clk 0:02:13.3]} 20. Bh6 {[%clk 0:02:35.1]} 20...
Nd4 {[%clk 0:01:41.4]} 21. Nxd4 {[%clk 0:02:20.2]} 21... Bxh6 {[%clk 0:01:41.3]}
22. Qxh6 {[%clk 0:02:20.9]} 22... Rxd4 {[%clk 0:01:40.8]} 23. Qe3 {[%clk
0:02:21.4]} 23... Qd8 {[%clk 0:01:33.4]} 24. b3 {[%clk 0:02:17.7]} 24... Be6
{[%clk 0:01:33]} 25. Rc1 {[%clk 0:02:02]} 25... h5 {[%clk 0:01:29.4]} 26. Kh2
{[%clk 0:01:53.7]} 26... Bf5 {[%clk 0:01:25.7]} 27. f3 {[%clk 0:01:11.8]} 27...
Rd2 {[%clk 0:01:16.2]} 28. Ne4 {[%clk 0:01:11.3]} 28... Bxe4 {[%clk 0:01:16.3]}
29. Qxe4 {[%clk 0:01:12.2]} 29... e6 {[%clk 0:01:05]} 30. f4 {[%clk 0:01:04.8]}
30... h4 {[%clk 0:00:51.1]} 31. c4 {[%clk 0:01:03.2]} 31... bxc4 {[%clk
0:00:44.5]} 32. bxc4 {[%clk 0:01:04.1]} 32... Rd4 {[%clk 0:00:44.6]} 33. Qf3
{[%clk 0:00:58.8]} 33... Rd3 {[%clk 0:00:42.8]} 34. Qe4 {[%clk 0:00:54.1]} 34...
Rd4 {[%clk 0:00:42.8]} 35. Qe3 {[%clk 0:00:44.3]} 35... Rd3 {[%clk 0:00:42]} 36.
Qc5 {[%clk 0:00:36.4]} 36... Rd2 {[%clk 0:00:36.6]} 37. Rb1 {[%clk 0:00:34.1]}
37... Qd3 {[%clk 0:00:29.9]} 38. Rb8+ {[%clk 0:00:11.4]} 38... Kh7 {[%clk
0:00:29.7]} 39. Rh8+ {[%clk 0:00:07.6]} 39... Kxh8 {[%clk 0:00:29.6]} 40. Qf8+
{[%clk 0:00:07.5]} 40... Kh7 {[%clk 0:00:29.9]} 41. Qxf7+ {[%clk 0:00:08.1]}
41... Kh8 {[%clk 0:00:29.9]} 42. Qf8+ {[%clk 0:00:08.2]} 42... Kh7 {[%clk
0:00:29]} 43. Qf7+ {[%clk 0:00:08.8]} 43... Kh8 {[%clk 0:00:26]} 44. Qf8+ {[%clk
0:00:09.7]} 44... Kh7 {[%clk 0:00:26.5]} 45. Qf7+ {[%clk 0:00:10.5]} 1/2-1/2

[Event "*** Titled Tuesday Blitz"]
[Site "Chess.com"]
[Date "2020.04.07"]
[Round "4"]
[White "Bajecny"]
[Black "vanea_03"]
[Result "1/2-1/2"]
[WhiteElo "2273"]
[BlackElo "2615"]
[TimeControl "180+1"]
[EndTime "13:40:55 PDT"]
[Termination "Game drawn by repetition"]

1. d4 {[%clk 0:02:59.8]} 1... d5 {[%clk 0:02:57.9]} 2. c4 {[%clk 0:02:59.6]}
2... dxc4 {[%clk 0:02:58.8]} 3. Nf3 {[%clk 0:02:59.3]} 3... a6 {[%clk
0:02:57.1]} 4. a4 {[%clk 0:02:59.1]} 4... Nc6 {[%clk 0:02:55.9]} 5. e3 {[%clk
0:02:59.1]} 5... Bg4 {[%clk 0:02:51.6]} 6. Bxc4 {[%clk 0:02:58.7]} 6... e6
{[%clk 0:02:50.8]} 7. h3 {[%clk 0:02:56.9]} 7... Bh5 {[%clk 0:02:50.6]} 8. Nc3
{[%clk 0:02:57]} 8... Nf6 {[%clk 0:02:50.3]} 9. O-O {[%clk 0:02:56.3]} 9... Bd6
{[%clk 0:02:50.1]} 10. b3 {[%clk 0:02:29.9]} 10... O-O {[%clk 0:02:47]} 11. Bb2
{[%clk 0:02:30]} 11... e5 {[%clk 0:02:44.5]} 12. dxe5 {[%clk 0:02:29.3]} 12...
Bxf3 {[%clk 0:02:30.4]} 13. Qxf3 {[%clk 0:02:25.3]} 13... Nxe5 {[%clk
0:02:30.8]} 14. Qe2 {[%clk 0:02:18.6]} 14... Nxc4 {[%clk 0:02:30.2]} 15. Qxc4
{[%clk 0:02:19.5]} 15... Be5 {[%clk 0:02:17.7]} 16. Rfd1 {[%clk 0:02:19]} 16...
Qe7 {[%clk 0:02:16.5]} 17. Nd5 {[%clk 0:02:11.1]} 17... Nxd5 {[%clk 0:02:16.2]}
18. Bxe5 {[%clk 0:02:08.8]} 18... Nxe3 {[%clk 0:02:12.1]} 19. fxe3 {[%clk
0:01:41.3]} 19... Qxe5 {[%clk 0:02:10.9]} 20. Qd4 {[%clk 0:01:41.6]} 20... Qe6
{[%clk 0:02:04.5]} 21. Qc3 {[%clk 0:01:38.6]} 21... c6 {[%clk 0:01:52.1]} 22.
Rd3 {[%clk 0:01:38]} 22... Rad8 {[%clk 0:01:45.1]} 23. Rad1 {[%clk 0:01:37.9]}
23... Rxd3 {[%clk 0:01:45.5]} 24. Rxd3 {[%clk 0:01:38.8]} 24... h6 {[%clk
0:01:44]} 25. Qc4 {[%clk 0:01:26.6]} 25... Qe7 {[%clk 0:01:34.4]} 26. b4 {[%clk
0:01:21.3]} 26... Qe5 {[%clk 0:01:00]} 27. b5 {[%clk 0:01:18.6]} 27... axb5
{[%clk 0:00:58.5]} 28. axb5 {[%clk 0:01:19.5]} 28... cxb5 {[%clk 0:00:58.6]} 29.
Qd5 {[%clk 0:01:16]} 29... Qe7 {[%clk 0:00:38.4]} 30. Qxb5 {[%clk 0:01:14.9]}
30... Rc8 {[%clk 0:00:37.7]} 31. Qb1 {[%clk 0:00:54]} 31... Qf6 {[%clk
0:00:19.9]} 32. Rb3 {[%clk 0:00:53.8]} 32... Qe5 {[%clk 0:00:15.5]} 33. Kh1
{[%clk 0:00:47.7]} 33... Ra8 {[%clk 0:00:11.4]} 34. Qe1 {[%clk 0:00:33.9]} 34...
Ra1 {[%clk 0:00:10.8]} 35. Rb1 {[%clk 0:00:34.5]} 35... Ra2 {[%clk 0:00:09.8]}
36. Rxb7 {[%clk 0:00:31.7]} 36... Qe4 {[%clk 0:00:09.1]} 37. Rb8+ {[%clk
0:00:29.9]} 37... Kh7 {[%clk 0:00:09.7]} 38. Qb1 {[%clk 0:00:30.3]} 38... Qxb1+
{[%clk 0:00:10.1]} 39. Rxb1 {[%clk 0:00:31.2]} 39... Re2 {[%clk 0:00:10.6]} 40.
Rb3 {[%clk 0:00:31.4]} 40... Kg6 {[%clk 0:00:11.3]} 41. Kg1 {[%clk 0:00:31.6]}
41... Kf5 {[%clk 0:00:11.6]} 42. Kf1 {[%clk 0:00:32]} 42... Ra2 {[%clk
0:00:12.2]} 43. Rb7 {[%clk 0:00:31.9]} 43... Kf6 {[%clk 0:00:11.8]} 44. Rb6+
{[%clk 0:00:31.6]} 44... Kf5 {[%clk 0:00:12.1]} 45. Rb7 {[%clk 0:00:31.7]} 45...
Kf6 {[%clk 0:00:12.6]} 46. Rb6+ {[%clk 0:00:31.9]} 46... Kf5 {[%clk 0:00:13.2]}
47. Rb7 {[%clk 0:00:32.2]} 1/2-1/2

[Event "*** Titled Tuesday Blitz"]
[Site "Chess.com"]
[Date "2020.04.07"]
[Round "4"]
[White "SketchyMoves"]
[Black "sergiochess83"]
[Result "1-0"]
[WhiteElo "2688"]
[BlackElo "2822"]
[TimeControl "180+1"]
[EndTime "13:40:57 PDT"]
[Termination "SketchyMoves won on time"]

1. e4 {[%clk 0:02:52.8]} 1... e5 {[%clk 0:02:52.6]} 2. Bc4 {[%clk 0:02:50.7]}
2... Nf6 {[%clk 0:02:50]} 3. d3 {[%clk 0:02:49.9]} 3... c6 {[%clk 0:02:47.4]} 4.
Nf3 {[%clk 0:02:50.3]} 4... d5 {[%clk 0:02:45.9]} 5. Bb3 {[%clk 0:02:51]} 5...
a5 {[%clk 0:02:43]} 6. a4 {[%clk 0:02:51.4]} 6... Bb4+ {[%clk 0:02:36.9]} 7. c3
{[%clk 0:02:48]} 7... Bd6 {[%clk 0:02:35.9]} 8. Bg5 {[%clk 0:02:40.4]} 8... Be6
{[%clk 0:02:17.1]} 9. exd5 {[%clk 0:02:34.5]} 9... cxd5 {[%clk 0:02:11.9]} 10.
Na3 {[%clk 0:02:34.8]} 10... Nc6 {[%clk 0:02:05.9]} 11. Nb5 {[%clk 0:02:33.9]}
11... Bb8 {[%clk 0:02:02.4]} 12. O-O {[%clk 0:02:33.9]} 12... h6 {[%clk
0:01:47.7]} 13. Bh4 {[%clk 0:02:31.3]} 13... g5 {[%clk 0:01:38.5]} 14. Bg3
{[%clk 0:02:31.5]} 14... Nh5 {[%clk 0:01:38.2]} 15. d4 {[%clk 0:02:12.6]} 15...
Nxg3 {[%clk 0:01:34.5]} 16. fxg3 {[%clk 0:02:12.1]} 16... e4 {[%clk 0:01:33.2]}
17. Ne1 {[%clk 0:01:53.7]} 17... O-O {[%clk 0:01:29.1]} 18. g4 {[%clk 0:01:45]}
18... Na7 {[%clk 0:01:21.3]} 19. Nxa7 {[%clk 0:01:31.2]} 19... Rxa7 {[%clk
0:01:21.1]} 20. Nc2 {[%clk 0:01:31.7]} 20... Qd6 {[%clk 0:01:12.1]} 21. g3
{[%clk 0:01:31.1]} 21... h5 {[%clk 0:01:01]} 22. Ne3 {[%clk 0:01:19]} 22... h4
{[%clk 0:00:54.9]} 23. Nf5 {[%clk 0:01:10.5]} 23... Qc7 {[%clk 0:00:40.6]} 24.
Qd2 {[%clk 0:00:50.7]} 24... Qd8 {[%clk 0:00:32.5]} 25. Kg2 {[%clk 0:00:40.9]}
25... Ra6 {[%clk 0:00:27.7]} 26. Ba2 {[%clk 0:00:21]} 26... Rb6 {[%clk
0:00:27.1]} 27. Rab1 {[%clk 0:00:21.4]} 27... Kh7 {[%clk 0:00:15]} 28. Rbe1
{[%clk 0:00:21.2]} 28... Rg8 {[%clk 0:00:10.7]} 29. Rh1 {[%clk 0:00:21]} 29...
Rg6 {[%clk 0:00:09.6]} 30. Ref1 {[%clk 0:00:21.4]} 30... Qd7 {[%clk 0:00:08]}
31. Qc2 {[%clk 0:00:14.8]} 31... Qc7 {[%clk 0:00:06.9]} 32. Ne3 {[%clk
0:00:11.3]} 32... Qd7 {[%clk 0:00:06.8]} 33. Nf5 {[%clk 0:00:11.1]} 33... Rc6
{[%clk 0:00:06.5]} 34. Qd1 {[%clk 0:00:10]} 34... Rb6 {[%clk 0:00:06.6]} 35. Rf2
{[%clk 0:00:10.3]} 35... Bc7 {[%clk 0:00:06.3]} 36. Ne3 {[%clk 0:00:09.7]} 36...
Bd6 {[%clk 0:00:05.6]} 37. Rhf1 {[%clk 0:00:09.2]} 37... Kg8 {[%clk 0:00:04]}
38. Bxd5 {[%clk 0:00:08.6]} 38... hxg3 {[%clk 0:00:02.7]} 39. hxg3 {[%clk
0:00:08.3]} 1-0

[Event "*** Titled Tuesday Blitz"]
[Site "Chess.com"]
[Date "2020.04.07"]
[Round "4"]
[White "esskeettit"]
[Black "ChelsieMonica"]
[Result "0-1"]
[WhiteElo "2336"]
[BlackElo "2235"]
[TimeControl "180+1"]
[EndTime "13:40:57 PDT"]
[Termination "ChelsieMonica won by checkmate"]

1. d4 {[%clk 0:03:00.9]} 1... Nf6 {[%clk 0:02:59.6]} 2. c4 {[%clk 0:02:58.8]}
2... e6 {[%clk 0:02:59.5]} 3. Nc3 {[%clk 0:02:58.3]} 3... Bb4 {[%clk 0:02:59.2]}
4. e3 {[%clk 0:02:58.4]} 4... Bxc3+ {[%clk 0:02:59.5]} 5. bxc3 {[%clk
0:02:58.6]} 5... O-O {[%clk 0:03:00.4]} 6. Bd3 {[%clk 0:02:58.8]} 6... b6 {[%clk
0:03:00.5]} 7. Ne2 {[%clk 0:02:58.5]} 7... Bb7 {[%clk 0:03:00.8]} 8. O-O {[%clk
0:02:58.3]} 8... d6 {[%clk 0:03:01.2]} 9. f3 {[%clk 0:02:58.5]} 9... Nbd7 {[%clk
0:03:01.3]} 10. e4 {[%clk 0:02:58.8]} 10... e5 {[%clk 0:03:01.7]} 11. Bg5 {[%clk
0:02:57.6]} 11... h6 {[%clk 0:03:01.4]} 12. Bh4 {[%clk 0:02:49.7]} 12... a5
{[%clk 0:03:01]} 13. Rc1 {[%clk 0:02:41.2]} 13... a4 {[%clk 0:02:49]} 14. a3
{[%clk 0:02:38.2]} 14... Ra5 {[%clk 0:02:48.2]} 15. Bc2 {[%clk 0:02:28.2]} 15...
Qa8 {[%clk 0:02:46.3]} 16. Qd2 {[%clk 0:02:08.8]} 16... Ba6 {[%clk 0:02:42.4]}
17. Bd3 {[%clk 0:02:08.6]} 17... Qc6 {[%clk 0:02:34.4]} 18. d5 {[%clk
0:01:48.3]} 18... Qb7 {[%clk 0:02:16.4]} 19. Ng3 {[%clk 0:01:39.5]} 19... b5
{[%clk 0:02:15.1]} 20. Rb1 {[%clk 0:01:32]} 20... Qa7+ {[%clk 0:02:14.6]} 21.
Kh1 {[%clk 0:01:30.4]} 21... bxc4 {[%clk 0:02:14.7]} 22. Be2 {[%clk 0:01:30.3]}
22... Rb5 {[%clk 0:02:11]} 23. Rxb5 {[%clk 0:01:25.6]} 23... Bxb5 {[%clk
0:02:11.3]} 24. Nf5 {[%clk 0:01:25.8]} 24... Kh7 {[%clk 0:02:11]} 25. f4 {[%clk
0:01:00.6]} 25... Nxe4 {[%clk 0:02:01]} 26. Qc2 {[%clk 0:01:00.3]} 26... Ndc5
{[%clk 0:01:54.7]} 27. fxe5 {[%clk 0:00:56.8]} 27... Nd3 {[%clk 0:01:50.3]} 28.
Nd4 {[%clk 0:00:40.7]} 28... Qc5 {[%clk 0:01:31]} 29. e6 {[%clk 0:00:36.8]}
29... f5 {[%clk 0:01:24.8]} 30. e7 {[%clk 0:00:36.5]} 30... Rf7 {[%clk
0:01:20.2]} 31. Bh5 {[%clk 0:00:27.4]} 31... g6 {[%clk 0:01:15.3]} 32. Bf3
{[%clk 0:00:24.7]} 32... Ng5 {[%clk 0:00:53.8]} 33. Bxg5 {[%clk 0:00:22.6]}
33... hxg5 {[%clk 0:00:53.7]} 34. Ne6 {[%clk 0:00:21.9]} 34... Qe3 {[%clk
0:00:49]} 35. Nxc7 {[%clk 0:00:15.6]} 35... Bd7 {[%clk 0:00:46]} 36. e8=Q {[%clk
0:00:12]} 36... Bxe8 {[%clk 0:00:45.6]} 37. Nxe8 {[%clk 0:00:12.2]} 37... Qxe8
{[%clk 0:00:46.4]} 38. h3 {[%clk 0:00:12]} 38... Qe3 {[%clk 0:00:46.1]} 39. Qxa4
{[%clk 0:00:11.5]} 39... Nf2+ {[%clk 0:00:45.1]} 40. Kh2 {[%clk 0:00:10.7]}
40... Qf4+ {[%clk 0:00:44.3]} 41. Kg1 {[%clk 0:00:10]} 41... Nd3 {[%clk
0:00:43.4]} 42. Qe8 {[%clk 0:00:09.2]} 42... Rg7 {[%clk 0:00:37.7]} 43. Be2
{[%clk 0:00:08.9]} 43... Qg3 {[%clk 0:00:35.5]} 44. Bf3 {[%clk 0:00:06]} 44...
Nf4 {[%clk 0:00:34.7]} 45. Kh1 {[%clk 0:00:03.8]} 45... g4 {[%clk 0:00:34.6]}
46. hxg4 {[%clk 0:00:03.6]} 46... fxg4 {[%clk 0:00:34.6]} 47. Be4 {[%clk
0:00:03.7]} 47... Qh4+ {[%clk 0:00:33.6]} 48. Kg1 {[%clk 0:00:04.1]} 48... Ne2#
{[%clk 0:00:33.4]} 0-1

[Event "*** Titled Tuesday Blitz"]
[Site "Chess.com"]
[Date "2020.04.07"]
[Round "4"]
[White "LiemLe"]
[Black "MikeKorovin"]
[Result "1-0"]
[WhiteElo "2971"]
[BlackElo "2764"]
[TimeControl "180+1"]
[EndTime "13:40:58 PDT"]
[Termination "LiemLe won by resignation"]

1. e4 {[%clk 0:03:00.9]} 1... e6 {[%clk 0:03:00.2]} 2. d4 {[%clk 0:03:00.6]}
2... d5 {[%clk 0:03:00.7]} 3. Nc3 {[%clk 0:03:01.3]} 3... Bb4 {[%clk 0:03:00.1]}
4. e5 {[%clk 0:03:01.2]} 4... Qd7 {[%clk 0:02:59.8]} 5. Qg4 {[%clk 0:02:56.4]}
5... Bf8 {[%clk 0:02:59.4]} 6. f4 {[%clk 0:02:51.7]} 6... b6 {[%clk 0:02:58.4]}
7. Nf3 {[%clk 0:02:51.4]} 7... Ba6 {[%clk 0:02:56.8]} 8. Be3 {[%clk 0:02:35.1]}
8... Nh6 {[%clk 0:02:47.3]} 9. Qh3 {[%clk 0:02:35]} 9... Nf5 {[%clk 0:02:46.9]}
10. Bf2 {[%clk 0:02:34.9]} 10... Bb4 {[%clk 0:02:34]} 11. g4 {[%clk 0:02:17.8]}
11... Ne7 {[%clk 0:02:32.5]} 12. Bxa6 {[%clk 0:01:43.6]} 12... Nxa6 {[%clk
0:02:32.4]} 13. O-O {[%clk 0:01:43.1]} 13... Bxc3 {[%clk 0:02:24.2]} 14. bxc3
{[%clk 0:01:44]} 14... h5 {[%clk 0:02:19.2]} 15. Ng5 {[%clk 0:01:31.6]} 15...
Nb8 {[%clk 0:02:07.9]} 16. Be3 {[%clk 0:01:19.9]} 16... Rh6 {[%clk 0:02:06.3]}
17. f5 {[%clk 0:01:04.3]} 17... hxg4 {[%clk 0:02:05.9]} 18. fxe6 {[%clk
0:01:03]} 18... fxe6 {[%clk 0:01:23.1]} 19. Qxg4 {[%clk 0:01:01.8]} 19... Nf5
{[%clk 0:01:17.9]} 20. Nxe6 {[%clk 0:00:56.5]} 20... Qxe6 {[%clk 0:00:59.7]} 21.
Bxh6 {[%clk 0:00:53.5]} 21... g6 {[%clk 0:00:41]} 22. Bg5 {[%clk 0:00:52.7]}
22... Nc6 {[%clk 0:00:40.5]} 23. Rf3 {[%clk 0:00:38.1]} 23... Kd7 {[%clk
0:00:39.1]} 24. Raf1 {[%clk 0:00:37.8]} 24... Rh8 {[%clk 0:00:35.2]} 25. Bf6
{[%clk 0:00:37.3]} 25... Rg8 {[%clk 0:00:33.7]} 26. Kh1 {[%clk 0:00:26.7]} 26...
Nfxd4 {[%clk 0:00:25.5]} 27. Qxe6+ {[%clk 0:00:22.3]} 27... Nxe6 {[%clk
0:00:26.4]} 28. Rd1 {[%clk 0:00:21.1]} 28... Nc5 {[%clk 0:00:15.6]} 29. Rxd5+
{[%clk 0:00:20.9]} 29... Ke6 {[%clk 0:00:15.9]} 30. Rd1 {[%clk 0:00:21.5]} 30...
Ne4 {[%clk 0:00:07]} 31. Re1 {[%clk 0:00:21.3]} 31... Nc5 {[%clk 0:00:06.5]} 32.
Rg3 {[%clk 0:00:20.3]} 32... Na5 {[%clk 0:00:03.7]} 33. Rg4 {[%clk 0:00:19.7]}
33... Nd7 {[%clk 0:00:03.8]} 34. Reg1 {[%clk 0:00:17.6]} 34... Nf8 {[%clk
0:00:02.1]} 35. Bg5 {[%clk 0:00:16.4]} 35... Nb7 {[%clk 0:00:02.5]} 36. Bh6
{[%clk 0:00:16.6]} 36... Nd7 {[%clk 0:00:01.9]} 37. Rxg6+ {[%clk 0:00:16.5]}
37... Rxg6 {[%clk 0:00:02.8]} 38. Rxg6+ {[%clk 0:00:16.9]} 38... Kxe5 {[%clk
0:00:03.7]} 39. Rg7 {[%clk 0:00:17.3]} 39... Ke6 {[%clk 0:00:03.3]} 40. Bf4
{[%clk 0:00:17.4]} 40... c5 {[%clk 0:00:02.8]} 41. h4 {[%clk 0:00:17]} 41... Na5
{[%clk 0:00:03.2]} 42. h5 {[%clk 0:00:17.2]} 42... Nf6 {[%clk 0:00:03.9]} 43. h6
{[%clk 0:00:17.6]} 43... Nc6 {[%clk 0:00:04.8]} 44. h7 {[%clk 0:00:17.4]} 44...
Nxh7 {[%clk 0:00:05.2]} 45. Rxh7 {[%clk 0:00:18.3]} 45... Kf5 {[%clk 0:00:05.6]}
46. Bc7 {[%clk 0:00:17.9]} 1-0

[Event "*** Titled Tuesday Blitz"]
[Site "Chess.com"]
[Date "2020.04.07"]
[Round "4"]
[White "1f3_2g41-0"]
[Black "AlexOstrovskiy"]
[Result "0-1"]
[WhiteElo "2161"]
[BlackElo "2609"]
[TimeControl "180+1"]
[EndTime "13:40:58 PDT"]
[Termination "AlexOstrovskiy won by checkmate"]

1. e4 {[%clk 0:03:00.9]} 1... e6 {[%clk 0:02:59.1]} 2. d4 {[%clk 0:03:00.2]}
2... b6 {[%clk 0:02:59.2]} 3. Nc3 {[%clk 0:03:00.2]} 3... Bb7 {[%clk 0:02:57.1]}
4. f4 {[%clk 0:02:59.6]} 4... Bb4 {[%clk 0:02:55.9]} 5. Bd3 {[%clk 0:02:57.1]}
5... Nf6 {[%clk 0:02:51.2]} 6. Qe2 {[%clk 0:02:56.4]} 6... d5 {[%clk 0:02:51.8]}
7. e5 {[%clk 0:02:56.6]} 7... Ne4 {[%clk 0:02:51]} 8. Bd2 {[%clk 0:02:56.1]}
8... Qh4+ {[%clk 0:02:38]} 9. Kf1 {[%clk 0:02:38.3]} 9... Ng3+ {[%clk
0:02:22.8]} 10. hxg3 {[%clk 0:02:37.6]} 10... Qxh1 {[%clk 0:02:23.7]} 11. Nb5
{[%clk 0:02:31.7]} 11... Bxd2 {[%clk 0:02:15.1]} 12. Qxd2 {[%clk 0:01:57.1]}
12... Na6 {[%clk 0:02:14.8]} 13. Kf2 {[%clk 0:01:52.5]} 13... O-O {[%clk
0:01:59.4]} 14. Re1 {[%clk 0:01:48.7]} 14... Qh6 {[%clk 0:01:50.8]} 15. Nf3
{[%clk 0:01:48]} 15... g6 {[%clk 0:01:36.6]} 16. Ng5 {[%clk 0:01:40.9]} 16...
Qg7 {[%clk 0:01:22.9]} 17. Rh1 {[%clk 0:01:21]} 17... h6 {[%clk 0:01:18.2]} 18.
Nf3 {[%clk 0:01:20.7]} 18... f6 {[%clk 0:01:09.1]} 19. exf6 {[%clk 0:01:13.8]}
19... Rxf6 {[%clk 0:01:10]} 20. Ne5 {[%clk 0:01:13.9]} 20... c5 {[%clk
0:01:00.9]} 21. Nd6 {[%clk 0:00:56]} 21... c4 {[%clk 0:00:50.3]} 22. Bxg6 {[%clk
0:00:49.8]} 22... Rxg6 {[%clk 0:00:47.6]} 23. Nxg6 {[%clk 0:00:49.2]} 23... Qxg6
{[%clk 0:00:48.5]} 24. Nxb7 {[%clk 0:00:48]} 24... Nc7 {[%clk 0:00:42.8]} 25.
Nd6 {[%clk 0:00:22.6]} 25... Rd8 {[%clk 0:00:41.5]} 26. f5 {[%clk 0:00:23]}
26... Qg5 {[%clk 0:00:29.9]} 27. Qb4 {[%clk 0:00:20.5]} 27... exf5 {[%clk
0:00:25.8]} 28. Nb7 {[%clk 0:00:19.9]} 28... Rd7 {[%clk 0:00:25.8]} 29. a4
{[%clk 0:00:18.1]} 29... Qe7 {[%clk 0:00:22.3]} 30. Qd2 {[%clk 0:00:17]} 30...
Ne8 {[%clk 0:00:16.6]} 31. Qxh6 {[%clk 0:00:16.9]} 31... Qf6 {[%clk 0:00:15]}
32. Qh5 {[%clk 0:00:14.7]} 32... Qxd4+ {[%clk 0:00:13.2]} 33. Kf1 {[%clk
0:00:13.9]} 33... Nf6 {[%clk 0:00:11]} 34. Qg6+ {[%clk 0:00:13.9]} 34... Rg7
{[%clk 0:00:09.2]} 35. Qxf5 {[%clk 0:00:14.2]} 35... Qd1+ {[%clk 0:00:04.5]} 36.
Kf2 {[%clk 0:00:13.7]} 36... Ng4+ {[%clk 0:00:05.1]} 37. Qxg4 {[%clk 0:00:12.5]}
37... Qxg4 {[%clk 0:00:06]} 38. Nd6 {[%clk 0:00:11.4]} 38... Qxg3+ {[%clk
0:00:06.1]} 39. Ke2 {[%clk 0:00:10.6]} 39... Qxd6 {[%clk 0:00:07]} 40. Ke3
{[%clk 0:00:11.5]} 40... Qg3+ {[%clk 0:00:06.7]} 41. Kd4 {[%clk 0:00:11.3]}
41... Qxg2 {[%clk 0:00:06.7]} 42. Re1 {[%clk 0:00:11.5]} 42... Qg4+ {[%clk
0:00:05.1]} 43. Kxd5 {[%clk 0:00:11.3]} 43... Rd7+ {[%clk 0:00:05.3]} 44. Kc6
{[%clk 0:00:11.3]} 44... Qd4 {[%clk 0:00:04.7]} 45. Kb5 {[%clk 0:00:11.1]} 45...
Qd5+ {[%clk 0:00:04.9]} 46. Ka6 {[%clk 0:00:12]} 46... Qa5# {[%clk 0:00:04.9]}
0-1